[Event "Championnat du monde jeunes U12F"]
[Date "2024.11.22"]
[White "Abylaykyzy, Bibisara"]
[Black "Baruch, Amit"]
[WhiteElo "1694"]
[BlackElo "1747"]
[Round "7.19"]
[Result "1-0"]
[TimeControl "5400+30"]

1. d4 {[%clk 1:30:57]} 1... Nf6 {[%clk 1:30:52]} 2. c4 {[%clk 1:30:56]} 2... e6
{[%clk 1:31:12]} 3. g3 {[%clk 1:31:22]} 3... Bb4+ {[%clk 1:31:20]} 4. Bd2 {[%clk
1:31:24]} 4... a5 {[%clk 1:31:35]} 5. Bg2 {[%clk 1:31:44]} 5... O-O {[%clk
1:31:29]} 6. a3 {[%clk 1:30:50]} 6... Bxd2+ {[%clk 1:30:17]} 7. Nxd2 {[%clk
1:30:52]} 7... d6 {[%clk 1:26:43]} 8. Ngf3 {[%clk 1:31:16]} 8... b6 {[%clk
1:24:16]} 9. O-O {[%clk 1:26:08]} 9... Bb7 {[%clk 1:24:14]} 10. Re1 {[%clk
1:26:08]} 10... Nbd7 {[%clk 1:23:37]} 11. Qc2 {[%clk 1:24:48]} 11... Re8 {[%clk
1:19:48]} 12. e4 {[%clk 1:24:13]} 12... e5 {[%clk 1:18:44]} 13. dxe5 {[%clk
1:23:05]} 13... dxe5 {[%clk 1:17:22]} 14. Rad1 {[%clk 1:23:21]} 14... Qe7 {[%clk
1:16:13]} 15. Nb1 {[%clk 1:22:01]} 15... Nc5 {[%clk 1:07:25]} 16. Nc3 {[%clk
1:22:13]} 16... a4 {[%clk 1:07:12]} 17. Nd5 {[%clk 1:20:42]} 17... Nxd5 {[%clk
1:05:30]} 18. exd5 {[%clk 1:19:05]} 18... Qf6 {[%clk 0:59:12]} 19. Nd2 {[%clk
1:16:46]} 19... Qd6 {[%clk 0:38:32]} 20. Ne4 {[%clk 1:05:36]} 20... Nxe4 {[%clk
0:38:13]} 21. Bxe4 {[%clk 1:03:14]} 21... g6 {[%clk 0:38:05]} 22. Qd2 {[%clk
0:56:55]} 22... f5 {[%clk 0:35:28]} 23. Bg2 {[%clk 0:56:34]} 23... Ra5 {[%clk
0:27:12]} 24. Qb4 {[%clk 0:54:02]} 24... Rea8 {[%clk 0:20:58]} 25. Rd2 {[%clk
0:50:06]} 25... e4 {[%clk 0:17:58]} 26. f3 {[%clk 0:47:51]} 26... exf3 {[%clk
0:14:04]} 27. Bxf3 {[%clk 0:46:25]} 27... Qc5+ {[%clk 0:14:18]} 28. Qxc5 {[%clk
0:43:09]} 28... Rxc5 {[%clk 0:14:38]} 29. d6 {[%clk 0:43:14]} 29... cxd6 {[%clk
0:13:15]} 30. Bxb7 {[%clk 0:43:39]} 30... Ra7 {[%clk 0:13:11]} 31. Bd5+ {[%clk
0:43:58]} 31... Kg7 {[%clk 0:13:16]} 32. Re6 {[%clk 0:43:22]} 32... Rd7 {[%clk
0:12:40]} 33. Bg2 {[%clk 0:40:36]} 33... Rxc4 {[%clk 0:11:20]} 34. Rexd6 {[%clk
0:38:11]} 34... Rc1+ {[%clk 0:11:16]} 35. Bf1 {[%clk 0:38:28]} 35... Re7 {[%clk
0:11:04]} 36. Rd7 {[%clk 0:38:47]} 36... Kf7 {[%clk 0:10:59]} 37. Rxe7+ {[%clk
0:38:55]} 37... Kxe7 {[%clk 0:11:21]} 38. Kf2 {[%clk 0:39:22]} 38... Rc5 {[%clk
0:10:01]} 39. Ke3 {[%clk 0:37:42]} 39... g5 {[%clk 0:09:10]} 40. Bg2 {[%clk
0:36:05]} 40... Re5+ {[%clk 0:07:00]} 41. Kd3 {[%clk 0:35:48]} 41... Rb5 {[%clk
0:06:34]} 42. Kc4 {[%clk 0:36:00]} 42... Re5 {[%clk 0:05:44]} 43. Kb4 {[%clk
0:35:57]} 43... f4 {[%clk 0:04:27]} 44. gxf4 {[%clk 0:35:34]} 44... gxf4 {[%clk
0:04:46]} 45. Bf3 {[%clk 0:36:01]} 45... Rc5 {[%clk 0:03:45]} 46. Kxa4 {[%clk
0:35:03]} 46... Ke6 {[%clk 0:03:54]} 47. Rd4 {[%clk 0:32:27]} 47... Rc2 {[%clk
0:03:09]} 48. Kb3 {[%clk 0:29:52]} 48... Rxh2 {[%clk 0:03:23]} 49. Rxf4 {[%clk
0:28:57]} 49... Ke5 {[%clk 0:02:38]} 50. Re4+ {[%clk 0:26:25]} 50... Kf5 {[%clk
0:02:59]} 51. Re3 {[%clk 0:25:49]} 51... h5 {[%clk 0:02:11]} 52. Bc6 {[%clk
0:25:25]} 52... h4 {[%clk 0:01:03]} 53. Kc3 {[%clk 0:25:00]} 53... Kf4 {[%clk
0:00:44]} 54. Rf3+ {[%clk 0:24:45]} 54... Kg4 {[%clk 0:00:57]} 55. Rd3 {[%clk
0:24:06]} 55... Kf4 {[%clk 0:00:40]} 56. b4 {[%clk 0:22:52]} 56... Kg5 {[%clk
0:00:34]} 57. Kc4 {[%clk 0:23:00]} 57... Rc2+ {[%clk 0:00:47]} 58. Kb5 {[%clk
0:23:26]} 58... Kg4 {[%clk 0:01:00]} 59. Kxb6 {[%clk 0:23:40]} 59... Rb2 {[%clk
0:01:16]} 60. b5 {[%clk 0:23:57]} 1-0

[Variant "Standard"]
[Site "Europe Echecs"]

[Event "Championnat du monde jeunes U12F"]
[Date "2024.11.22"]
[White "Messali Anger, Ilyana"]
[Black "Xu, Melissa"]
[WhiteElo "1687"]
[BlackElo "1731"]
[Round "7.20"]
[Result "1-0"]
[TimeControl "5400+30"]

1. e4 {[%clk 1:30:53]} 1... c5 {[%clk 1:30:56]} 2. Nf3 {[%clk 1:31:06]} 2... Nc6
{[%clk 1:31:17]} 3. Nc3 {[%clk 1:31:06]} 3... g6 {[%clk 1:29:44]} 4. d4 {[%clk
1:31:01]} 4... cxd4 {[%clk 1:29:38]} 5. Nxd4 {[%clk 1:30:57]} 5... e5 {[%clk
1:26:56]} 6. Ndb5 {[%clk 1:27:22]} 6... Nf6 {[%clk 1:21:48]} 7. Bg5 {[%clk
1:21:47]} 7... Be7 {[%clk 1:14:55]} 8. Nd6+ {[%clk 1:18:20]} 8... Kf8 {[%clk
1:12:12]} 9. Bc4 {[%clk 1:14:46]} 9... Bxd6 {[%clk 1:11:06]} 10. Qxd6+ {[%clk
1:13:18]} 10... Kg7 {[%clk 1:11:17]} 11. Nd5 {[%clk 1:09:33]} 11... Nxe4 {[%clk
1:08:34]} 12. Bxd8 {[%clk 1:07:04]} 12... Nxd6 {[%clk 1:08:46]} 13. Bf6+ {[%clk
1:06:33]} 13... Kg8 {[%clk 1:07:25]} 14. Bb3 {[%clk 1:04:11]} 14... h6 {[%clk
1:04:59]} 15. Bxh8 {[%clk 1:03:27]} 15... Kxh8 {[%clk 1:05:25]} 16. O-O-O {[%clk
0:59:34]} 16... Nd4 {[%clk 1:00:51]} 17. Rhe1 {[%clk 0:56:41]} 17... Nxb3+
{[%clk 0:56:18]} 18. axb3 {[%clk 0:56:16]} 18... Nf5 {[%clk 0:55:23]} 19. Rxe5
{[%clk 0:52:34]} 19... b6 {[%clk 0:51:55]} 20. Re8+ {[%clk 0:49:51]} 20... Kg7
{[%clk 0:51:58]} 21. Nc7 {[%clk 0:45:22]} 21... Rb8 {[%clk 0:52:24]} 22. g4
{[%clk 0:41:51]} 22... Nh4 {[%clk 0:52:00]} 23. Rd3 {[%clk 0:40:45]} 23... g5
{[%clk 0:50:52]} 24. Rc3 {[%clk 0:39:18]} 24... d6 {[%clk 0:49:48]} 25. Rd8
{[%clk 0:36:29]} 25... Kh7 {[%clk 0:46:50]} 26. Ne8 {[%clk 0:34:52]} 26... Kg6
{[%clk 0:45:46]} 27. Rdxc8 {[%clk 0:34:40]} 27... Rxc8 {[%clk 0:46:10]} 28. Rxc8
{[%clk 0:34:56]} 28... d5 {[%clk 0:46:28]} 29. Rc6+ {[%clk 0:34:26]} 29... Kh7
{[%clk 0:46:50]} 30. Rf6 {[%clk 0:34:02]} 30... Kg8 {[%clk 0:46:04]} 31. Nd6
{[%clk 0:33:06]} 31... Ng2 {[%clk 0:45:49]} 32. Rxf7 {[%clk 0:33:17]} 32... a6
{[%clk 0:46:04]} 33. Rb7 {[%clk 0:33:19]} 33... b5 {[%clk 0:46:08]} 34. Rb6
{[%clk 0:33:32]} 34... Nf4 {[%clk 0:46:25]} 35. Rxa6 {[%clk 0:33:36]} 35... Ne2+
{[%clk 0:46:36]} 36. Kd2 {[%clk 0:33:36]} 36... Nd4 {[%clk 0:46:54]} 37. Kd3
{[%clk 0:33:44]} 37... Nf3 {[%clk 0:46:45]} 38. Nxb5 {[%clk 0:33:35]} 38... Nxh2
{[%clk 0:46:55]} 39. Rxh6 {[%clk 0:33:16]} 39... Nxg4 {[%clk 0:47:03]} 40. Rg6+
{[%clk 0:33:12]} 40... Kf7 {[%clk 0:47:23]} 41. Rxg5 {[%clk 0:33:10]} 41...
Nxf2+ {[%clk 0:47:43]} 42. Kd4 {[%clk 0:32:49]} 42... Ke6 {[%clk 0:47:23]} 43.
c4 {[%clk 0:32:49]} 43... dxc4 {[%clk 0:47:38]} 44. bxc4 {[%clk 0:33:02]} 44...
Kd7 {[%clk 0:47:48]} 45. c5 {[%clk 0:32:53]} 45... Kc6 {[%clk 0:47:55]} 46. Na7+
{[%clk 0:32:59]} 46... Kc7 {[%clk 0:48:12]} 47. Rg7+ {[%clk 0:32:55]} 47... Kb8
{[%clk 0:48:24]} 48. c6 1-0

[Variant "Standard"]
[Site "Europe Echecs"]

[Event "Championnat du monde jeunes U12F"]
[Date "2024.11.22"]
[White "Liu, Jingyu"]
[Black "Li, Peishan"]
[WhiteElo "1680"]
[BlackElo "1729"]
[Round "7.21"]
[Result "0-1"]
[TimeControl "5400+30"]

1. d4 {[%clk 1:30:58]} 1... Nf6 {[%clk 1:30:53]} 2. c4 {[%clk 1:31:23]} 2... e6
{[%clk 1:31:20]} 3. Nc3 {[%clk 1:31:46]} 3... d5 {[%clk 1:31:47]} 4. cxd5 {[%clk
1:32:07]} 4... exd5 {[%clk 1:32:13]} 5. Bg5 {[%clk 1:32:30]} 5... Be7 {[%clk
1:32:39]} 6. e3 {[%clk 1:32:54]} 6... h6 {[%clk 1:33:03]} 7. Bf4 {[%clk
1:33:19]} 7... O-O {[%clk 1:32:42]} 8. Bd3 {[%clk 1:33:41]} 8... c6 {[%clk
1:31:28]} 9. Nf3 {[%clk 1:34:05]} 9... Be6 {[%clk 1:30:51]} 10. h3 {[%clk
1:33:57]} 10... Nbd7 {[%clk 1:30:53]} 11. O-O {[%clk 1:34:15]} 11... Re8 {[%clk
1:30:29]} 12. Qc2 {[%clk 1:33:28]} 12... a5 {[%clk 1:28:54]} 13. Na4 {[%clk
1:27:34]} 13... Rc8 {[%clk 1:19:21]} 14. a3 {[%clk 1:25:19]} 14... Ne4 {[%clk
1:08:24]} 15. Bxe4 {[%clk 1:07:25]} 15... dxe4 {[%clk 1:08:50]} 16. Ne5 {[%clk
1:07:47]} 16... Nxe5 {[%clk 0:56:06]} 17. Bxe5 {[%clk 1:07:24]} 17... Bd5 {[%clk
0:54:31]} 18. Qd2 {[%clk 0:58:49]} 18... Bb3 {[%clk 0:32:27]} 19. Nc3 {[%clk
0:57:49]} 19... Bd6 {[%clk 0:30:35]} 20. Nxe4 {[%clk 0:43:24]} 20... Bxe5 {[%clk
0:30:52]} 21. dxe5 {[%clk 0:43:48]} 21... Rxe5 {[%clk 0:31:06]} 22. Qc3 {[%clk
0:43:31]} 22... Rb5 {[%clk 0:22:59]} 23. f3 {[%clk 0:27:24]} 23... a4 {[%clk
0:20:05]} 24. Rf2 {[%clk 0:27:10]} 24... Rd5 {[%clk 0:19:40]} 25. Nc5 {[%clk
0:20:17]} 25... Qb6 {[%clk 0:14:51]} 26. Nxb3 {[%clk 0:16:34]} 26... axb3 {[%clk
0:15:16]} 27. e4 {[%clk 0:15:46]} 27... Rd7 {[%clk 0:11:11]} 28. Re1 {[%clk
0:14:07]} 28... c5 {[%clk 0:10:50]} 29. Re3 {[%clk 0:14:10]} 29... c4 {[%clk
0:11:01]} 30. f4 {[%clk 0:12:54]} 30... Rcd8 {[%clk 0:09:55]} 31. Rff3 {[%clk
0:12:14]} 31... Rd3 {[%clk 0:09:48]} 32. Qb4 {[%clk 0:11:05]} 32... Qd4 {[%clk
0:10:07]} 33. Kf2 {[%clk 0:09:11]} 33... Qxb2+ {[%clk 0:10:09]} 34. Re2 {[%clk
0:09:30]} 34... Rd2 {[%clk 0:09:19]} 35. Re3 {[%clk 0:09:19]} 35... c3 {[%clk
0:07:29]} 0-1

[Variant "Standard"]
[Site "Europe Echecs"]

[Event "Championnat du monde jeunes U12F"]
[Date "2024.11.22"]
[White "Ribreau, Anna"]
[Black "Smirnova, Viktoria A"]
[WhiteElo "1726"]
[BlackElo "1658"]
[Round "7.22"]
[Result "1/2-1/2"]
[TimeControl "5400+30"]

1. Nf3 {[%clk 1:20:06]} 1... d5 {[%clk 1:30:52]} 2. g3 {[%clk 1:19:52]} 2... c6
{[%clk 1:31:18]} 3. Bg2 {[%clk 1:19:50]} 3... Nf6 {[%clk 1:31:40]} 4. O-O {[%clk
1:19:39]} 4... Bf5 {[%clk 1:31:50]} 5. d3 {[%clk 1:18:54]} 5... e6 {[%clk
1:30:54]} 6. c4 {[%clk 1:17:56]} 6... Nbd7 {[%clk 1:30:04]} 7. cxd5 {[%clk
1:16:47]} 7... exd5 {[%clk 1:29:02]} 8. Nc3 {[%clk 1:15:52]} 8... Bc5 {[%clk
1:26:15]} 9. Qb3 {[%clk 1:13:53]} 9... Bb6 {[%clk 1:24:32]} 10. Na4 {[%clk
1:08:34]} 10... O-O {[%clk 1:22:12]} 11. Nxb6 {[%clk 1:07:57]} 11... Qxb6 {[%clk
1:21:06]} 12. Qxb6 {[%clk 1:05:21]} 12... axb6 {[%clk 1:17:38]} 13. Nh4 {[%clk
1:04:30]} 13... Bg4 {[%clk 1:16:22]} 14. f3 {[%clk 1:03:26]} 14... Be6 {[%clk
1:15:36]} 15. e4 {[%clk 1:02:54]} 15... Nc5 {[%clk 1:13:43]} 16. Rd1 {[%clk
0:54:21]} 16... Nb3 {[%clk 1:12:25]} 17. Rb1 {[%clk 0:53:34]} 17... Rxa2 {[%clk
1:09:54]} 18. e5 {[%clk 0:53:02]} 18... Nd7 {[%clk 1:07:33]} 19. f4 {[%clk
0:52:47]} 19... Bg4 {[%clk 1:01:51]} 20. Re1 {[%clk 0:52:56]} 20... Ndc5 {[%clk
1:00:28]} 21. Bf1 {[%clk 0:50:02]} 21... Nxc1 {[%clk 0:58:48]} 22. Rexc1 {[%clk
0:50:16]} 22... Nb3 {[%clk 0:58:50]} 23. Rc2 {[%clk 0:47:55]} 23... Rfa8 {[%clk
0:56:44]} 24. h3 {[%clk 0:45:06]} 24... Bd7 {[%clk 0:56:31]} 25. Nf3 {[%clk
0:44:46]} 25... d4 {[%clk 0:55:58]} 26. Nd2 {[%clk 0:43:43]} 26... Nxd2 {[%clk
0:53:39]} 27. Rxd2 {[%clk 0:44:05]} 27... Ra1 {[%clk 0:51:47]} 28. Rxa1 {[%clk
0:40:33]} 28... Rxa1 {[%clk 0:52:11]} 29. Kf2 {[%clk 0:40:48]} 29... Kf8 {[%clk
0:51:36]} 30. Bg2 {[%clk 0:40:54]} 30... Ke8 {[%clk 0:51:43]} 31. g4 {[%clk
0:40:56]} 31... g6 {[%clk 0:50:44]} 32. Be4 {[%clk 0:40:51]} 32... Kd8 {[%clk
0:50:15]} 33. f5 {[%clk 0:40:47]} 33... gxf5 {[%clk 0:50:37]} 34. Bxf5 {[%clk
0:40:45]} 34... Bxf5 {[%clk 0:50:36]} 35. gxf5 {[%clk 0:41:09]} 35... Ra5 {[%clk
0:50:26]} 36. Re2 {[%clk 0:41:21]} 36... f6 {[%clk 0:48:59]} 37. Kf3 {[%clk
0:39:45]} 37... Ke7 {[%clk 0:46:49]} 38. Kf4 {[%clk 0:39:42]} 38... Rxe5 {[%clk
0:28:51]} 39. Rxe5+ {[%clk 0:39:56]} 39... fxe5+ {[%clk 0:29:15]} 40. Kxe5
{[%clk 0:40:22]} 40... c5 {[%clk 0:29:38]} 41. h4 {[%clk 0:40:16]} 41... b5
{[%clk 0:27:43]} 42. b3 {[%clk 0:40:09]} 42... b6 {[%clk 0:25:34]} 43. h5 {[%clk
0:29:03]} 43... h6 {[%clk 0:25:16]} 44. Kd5 {[%clk 0:27:51]} 44... Kf6 {[%clk
0:23:42]} 45. Ke4 {[%clk 0:28:00]} 45... Ke7 {[%clk 0:22:38]} 46. Kd5 {[%clk
0:27:19]} 46... Kd7 {[%clk 0:21:41]} 47. Ke5 {[%clk 0:24:18]} 47... Ke7 {[%clk
0:21:01]} 48. Kd5 {[%clk 0:24:33]} 48... Kf6 {[%clk 0:20:50]} 49. Ke4 {[%clk
0:24:59]} 49... Ke7 {[%clk 0:19:14]} 1/2-1/2

[Variant "Standard"]
[Site "Europe Echecs"]

[Event "Championnat du monde jeunes U12F"]
[Date "2024.11.22"]
[White "Sri Darshini T"]
[Black "Oksanen, Maria"]
[WhiteElo "1681"]
[BlackElo "1725"]
[Round "7.23"]
[Result "1-0"]
[TimeControl "5400+30"]

1. d4 {[%clk 1:30:58]} 1... Nf6 {[%clk 1:30:52]} 2. c4 {[%clk 1:31:24]} 2... g6
{[%clk 1:31:15]} 3. Nc3 {[%clk 1:31:50]} 3... d5 {[%clk 1:31:41]} 4. cxd5 {[%clk
1:32:14]} 4... Nxd5 {[%clk 1:32:06]} 5. e4 {[%clk 1:32:37]} 5... Nxc3 {[%clk
1:32:31]} 6. bxc3 {[%clk 1:33:02]} 6... Bg7 {[%clk 1:32:55]} 7. Bc4 {[%clk
1:33:26]} 7... c5 {[%clk 1:33:20]} 8. Ne2 {[%clk 1:33:50]} 8... O-O {[%clk
1:33:43]} 9. O-O {[%clk 1:34:14]} 9... Nc6 {[%clk 1:34:06]} 10. Be3 {[%clk
1:34:38]} 10... Qa5 {[%clk 1:33:31]} 11. Rb1 {[%clk 1:29:28]} 11... Rd8 {[%clk
1:23:49]} 12. Qb3 {[%clk 1:19:43]} 12... e6 {[%clk 1:20:17]} 13. Rfd1 {[%clk
1:16:21]} 13... Bd7 {[%clk 1:15:01]} 14. Bg5 {[%clk 1:06:43]} 14... Rdc8 {[%clk
1:02:45]} 15. Qxb7 {[%clk 0:57:32]} 15... cxd4 {[%clk 1:01:34]} 16. Qxd7 {[%clk
0:55:09]} 16... Qxg5 {[%clk 1:01:54]} 17. Ba6 {[%clk 0:55:10]} 17... Ne5 {[%clk
1:02:17]} 18. Qa4 {[%clk 0:53:15]} 18... d3 {[%clk 0:41:32]} 19. Bxc8 {[%clk
0:42:24]} 19... Nf3+ {[%clk 0:41:52]} 20. Kh1 {[%clk 0:42:46]} 20... Qh5 {[%clk
0:42:09]} 21. Qe8+ {[%clk 0:40:15]} 21... Bf8 {[%clk 0:42:29]} 22. h3 {[%clk
0:38:04]} 22... dxe2 {[%clk 0:40:41]} 23. Rd8 {[%clk 0:38:16]} 23... Qh6 {[%clk
0:41:02]} 24. gxf3 {[%clk 0:35:52]} 24... Rb8 {[%clk 0:33:39]} 25. Re1 {[%clk
0:34:09]} 25... Qxh3+ {[%clk 0:34:00]} 26. Kg1 {[%clk 0:34:37]} 26... Qh6 {[%clk
0:34:13]} 27. Qxf8+ {[%clk 0:32:45]} 27... Qxf8 {[%clk 0:34:35]} 28. Rxf8+
{[%clk 0:33:12]} 28... Kxf8 {[%clk 0:34:57]} 29. Ba6 {[%clk 0:33:38]} 29... Rb6
{[%clk 0:33:34]} 30. Bxe2 {[%clk 0:33:05]} 30... Rb2 {[%clk 0:33:46]} 31. Bc4
{[%clk 0:33:11]} 31... Rc2 {[%clk 0:33:40]} 32. Re3 {[%clk 0:33:12]} 32... Ke7
{[%clk 0:34:05]} 33. f4 {[%clk 0:30:20]} 33... h5 {[%clk 0:33:51]} 34. Kg2
{[%clk 0:29:01]} 34... a5 {[%clk 0:32:54]} 35. Bb3 {[%clk 0:28:14]} 35... Rd2
{[%clk 0:33:15]} 36. e5 {[%clk 0:25:39]} 36... a4 {[%clk 0:31:57]} 37. Bxa4
{[%clk 0:25:04]} 37... Rxa2 {[%clk 0:32:17]} 38. Bb5 {[%clk 0:24:36]} 38... Rb2
{[%clk 0:32:15]} 39. c4 {[%clk 0:24:36]} 39... Rd2 {[%clk 0:32:27]} 40. Ra3
{[%clk 0:21:40]} 40... Rd4 {[%clk 0:32:03]} 41. Kf3 {[%clk 0:21:08]} 41... g5
{[%clk 0:31:40]} 42. fxg5 {[%clk 0:19:48]} 42... Rg4 {[%clk 0:32:04]} 43. Ra8
{[%clk 0:20:03]} 1-0

[Variant "Standard"]
[Site "Europe Echecs"]

[Event "Championnat du monde jeunes U12F"]
[Date "2024.11.22"]
[White "Bohatyrova, Mariia"]
[Black "Stepankova, Linda"]
[WhiteElo "1722"]
[BlackElo "1624"]
[Round "7.24"]
[Result "1-0"]
[TimeControl "5400+30"]

1. d4 {[%clk 1:30:56]} 1... d5 {[%clk 1:30:47]} 2. c4 {[%clk 1:31:17]} 2... e6
{[%clk 1:31:11]} 3. Nf3 {[%clk 1:31:36]} 3... c6 {[%clk 1:30:18]} 4. Nc3 {[%clk
1:31:43]} 4... Bd6 {[%clk 1:29:40]} 5. g3 {[%clk 1:21:48]} 5... f5 {[%clk
1:22:35]} 6. Bg5 {[%clk 1:05:22]} 6... Nf6 {[%clk 1:21:19]} 7. e3 {[%clk
1:01:13]} 7... O-O {[%clk 1:20:18]} 8. Bf4 {[%clk 0:52:31]} 8... Ne4 {[%clk
1:17:03]} 9. Bxd6 {[%clk 0:49:27]} 9... Qxd6 {[%clk 1:14:24]} 10. Ne5 {[%clk
0:44:52]} 10... Bd7 {[%clk 1:02:58]} 11. Qb3 {[%clk 0:34:04]} 11... Qc7 {[%clk
0:56:38]} 12. Be2 {[%clk 0:32:31]} 12... Be8 {[%clk 0:55:58]} 13. Rc1 {[%clk
0:30:16]} 13... Qb6 {[%clk 0:50:11]} 14. Rc2 {[%clk 0:22:04]} 14... Nd7 {[%clk
0:47:06]} 15. Nxd7 {[%clk 0:21:02]} 15... Bxd7 {[%clk 0:43:42]} 16. O-O {[%clk
0:20:33]} 16... Be8 {[%clk 0:36:10]} 17. Rfc1 {[%clk 0:15:53]} 17... Bg6 {[%clk
0:19:37]} 18. Na4 {[%clk 0:13:08]} 18... Qxb3 {[%clk 0:19:29]} 19. axb3 {[%clk
0:13:33]} 19... Rfe8 {[%clk 0:17:27]} 20. b4 {[%clk 0:08:57]} 20... a6 {[%clk
0:15:42]} 21. Nc5 {[%clk 0:06:45]} 21... Re7 {[%clk 0:15:05]} 22. cxd5 {[%clk
0:05:34]} 22... exd5 {[%clk 0:14:04]} 23. Nd3 {[%clk 0:04:46]} 23... Be8 {[%clk
0:09:23]} 24. Ne5 {[%clk 0:04:24]} 24... g6 {[%clk 0:08:15]} 25. Kg2 {[%clk
0:04:10]} 25... a5 {[%clk 0:04:01]} 26. Ra1 {[%clk 0:04:16]} 26... a4 {[%clk
0:04:04]} 27. f3 {[%clk 0:03:55]} 27... Nd6 {[%clk 0:03:49]} 28. Rc3 {[%clk
0:03:49]} 28... Nf7 {[%clk 0:03:05]} 29. Nxf7 {[%clk 0:04:05]} 29... Kxf7 30.
Bd1 {[%clk 0:03:50]} 30... b5 {[%clk 0:03:10]} 31. Rca3 {[%clk 0:02:42]} 31...
Kf6 {[%clk 0:02:23]} 32. Kf2 {[%clk 0:02:51]} 32... Rb7 {[%clk 0:01:44]} 33. b3
{[%clk 0:02:11]} 33... Rab8 {[%clk 0:01:41]} 34. Bc2 axb3 {[%clk 0:01:12]} 35.
Bxb3 {[%clk 0:01:11]} 35... h6 {[%clk 0:00:52]} 36. Bc2 {[%clk 0:01:03]} 36...
g5 {[%clk 0:00:34]} 37. Ra7 {[%clk 0:01:09]} 37... Bg6 {[%clk 0:00:42]} 38. Rxb7
{[%clk 0:00:41]} 38... Rxb7 {[%clk 0:01:05]} 39. Ra6 {[%clk 0:01:07]} 39... Rc7
{[%clk 0:01:23]} 40. Bb3 {[%clk 0:01:02]} 40... Bf7 {[%clk 0:01:27]} 41. Bc2
{[%clk 0:01:00]} 41... Bg6 {[%clk 0:01:46]} 42. Bd3 {[%clk 0:01:23]} 42... Kf7
{[%clk 0:01:55]} 43. h4 {[%clk 0:01:06]} 43... Kg7 {[%clk 0:01:58]} 44. hxg5
{[%clk 0:01:01]} 44... hxg5 {[%clk 0:02:23]} 45. g4 {[%clk 0:00:51]} 45... f4
{[%clk 0:01:56]} 46. e4 {[%clk 0:00:40]} 46... dxe4 {[%clk 0:02:02]} 47. Bxe4
{[%clk 0:00:34]} 47... Bxe4 {[%clk 0:02:14]} 48. fxe4 {[%clk 0:01:01]} 48... Kf7
{[%clk 0:02:29]} 49. Kf3 {[%clk 0:01:09]} 49... Rd7 {[%clk 0:01:29]} 50. Rxc6
{[%clk 0:00:45]} 50... Rxd4 {[%clk 0:01:34]} 51. Rc5 {[%clk 0:00:35]} 51... Kf6
{[%clk 0:00:46]} 52. Rxb5 {[%clk 0:00:51]} 52... Rd3+ {[%clk 0:01:04]} 53. Kf2
{[%clk 0:01:01]} 53... Re3 {[%clk 0:00:54]} 54. Rf5+ {[%clk 0:00:59]} 54... Kg6
{[%clk 0:01:11]} 55. e5 {[%clk 0:01:05]} 55... Rb3 {[%clk 0:00:44]} 56. Rf6+
{[%clk 0:01:07]} 56... Kg7 {[%clk 0:00:57]} 57. Rb6 {[%clk 0:01:14]} 57... Kf7
{[%clk 0:00:50]} 58. b5 {[%clk 0:01:10]} 58... Ke7 {[%clk 0:00:47]} 59. Rg6
{[%clk 0:00:35]} 59... Rxb5 {[%clk 0:00:59]} 60. Rxg5 {[%clk 0:00:59]} 60... Ke6
{[%clk 0:00:40]} 61. Rg6+ {[%clk 0:01:00]} 61... Ke7 {[%clk 0:00:48]} 62. e6
{[%clk 0:00:56]} 62... Rb4 {[%clk 0:00:37]} 63. Kf3 {[%clk 0:01:13]} 63... Ra4
{[%clk 0:00:37]} 64. g5 {[%clk 0:01:11]} 64... Ra3+ {[%clk 0:00:38]} 65. Kxf4
{[%clk 0:01:29]} 65... Ra1 {[%clk 0:01:02]} 66. Rh6 {[%clk 0:00:58]} 66... Rf1+
{[%clk 0:00:52]} 67. Kg4 {[%clk 0:01:04]} 67... Rg1+ {[%clk 0:00:57]} 68. Kf5
{[%clk 0:00:44]} 68... Rf1+ {[%clk 0:01:11]} 69. Kg6 {[%clk 0:00:41]} 69... Kxe6
{[%clk 0:01:02]} 70. Kh7+ {[%clk 0:00:35]} 70... Ke7 {[%clk 0:00:37]} 71. g6
{[%clk 0:00:36]} 71... Ra1 {[%clk 0:00:35]} 72. g7 {[%clk 0:00:50]} 72... Ra8
73. g8=Q {[%clk 0:01:06]} 1-0

[Variant "Standard"]
[Site "Europe Echecs"]